[Event "Early-Titled-Tuesday-Blitz-October-03-2023"]
[Site "Chess.com"]
[Date "2023.10.03"]
[Round "8"]
[White "szachuspl"]
[Black "CSB7"]
[Result "0-1"]
[WhiteElo "2539"]
[BlackElo "2750"]
[TimeControl "180+1"]
[EndTime "9:28:04 PDT"]
[Termination "CSB7 won by resignation"]

1. d4 {[%clk 0:03:00.9]} 1... d5 {[%clk 0:03:00.1]} 2. c4 {[%clk 0:03:00]} 2...
c6 {[%clk 0:02:59.9]} 3. Nc3 {[%clk 0:02:59.7]} 3... e6 {[%clk 0:02:59.5]} 4.
Nf3 {[%clk 0:02:59.6]} 4... Nf6 {[%clk 0:02:57.4]} 5. Bg5 {[%clk 0:02:58.6]}
5... dxc4 {[%clk 0:02:52.4]} 6. e4 {[%clk 0:02:58.3]} 6... b5 {[%clk 0:02:52.4]}
7. e5 {[%clk 0:02:58.6]} 7... h6 {[%clk 0:02:52.6]} 8. Bh4 {[%clk 0:02:51.1]}
8... g5 {[%clk 0:02:52.4]} 9. exf6 {[%clk 0:02:46.5]} 9... gxh4 {[%clk
0:02:51.8]} 10. Ne5 {[%clk 0:02:47.1]} 10... Qxf6 {[%clk 0:02:48.9]} 11. Be2
{[%clk 0:02:46.9]} 11... Nd7 {[%clk 0:02:36.5]} 12. Nxc6 {[%clk 0:02:44.2]}
12... Bb7 {[%clk 0:02:29.1]} 13. Bf3 {[%clk 0:02:43.6]} 13... a6 {[%clk
0:01:59]} 14. O-O {[%clk 0:02:41.4]} 14... Rc8 {[%clk 0:01:50.6]} 15. d5 {[%clk
0:02:41.2]} 15... Bxc6 {[%clk 0:01:44.3]} 16. dxc6 {[%clk 0:02:40.8]} 16... Ne5
{[%clk 0:01:43.1]} 17. Re1 {[%clk 0:02:25]} 17... Nxf3+ {[%clk 0:01:19.5]} 18.
gxf3 {[%clk 0:02:24.8]} 18... Rxc6 {[%clk 0:01:18.2]} 19. Qd5 {[%clk 0:02:10.5]}
19... Qg5+ {[%clk 0:01:10.3]} 20. Qxg5 {[%clk 0:01:52.6]} 20... hxg5 {[%clk
0:01:10.2]} 21. a4 {[%clk 0:01:53.2]} 21... b4 {[%clk 0:01:07.7]} 22. Ne4 {[%clk
0:01:53.3]} 22... Be7 {[%clk 0:00:55.2]} 23. Rac1 {[%clk 0:01:52.8]} 23... O-O
{[%clk 0:00:51.1]} 24. Nd2 {[%clk 0:01:46.9]} 24... Rfc8 {[%clk 0:00:48.7]} 25.
Re4 {[%clk 0:01:44.1]} 25... c3 {[%clk 0:00:45.7]} 26. bxc3 {[%clk 0:01:44.1]}
26... bxc3 {[%clk 0:00:41.7]} 27. Nb3 {[%clk 0:01:41.7]} 27... c2 {[%clk
0:00:37.2]} 28. Nd4 {[%clk 0:01:38.4]} 28... Rc4 {[%clk 0:00:32.7]} 0-1

[Event "Early-Titled-Tuesday-Blitz-October-03-2023"]
[Site "Chess.com"]
[Date "2023.10.03"]
[Round "8"]
[White "mortngabriel"]
[Black "UNSTOPPABLE_LEGEND"]
[Result "0-1"]
[WhiteElo "2564"]
[BlackElo "2466"]
[TimeControl "180+1"]
[EndTime "9:28:08 PDT"]
[Termination "UNSTOPPABLE_LEGEND won by resignation"]

1. d4 {[%clk 0:03:00.9]} 1... Nf6 {[%clk 0:02:58]} 2. Nf3 {[%clk 0:03:00.9]}
2... d5 {[%clk 0:02:57.9]} 3. c4 {[%clk 0:03:00.7]} 3... e6 {[%clk 0:02:57.5]}
4. Nc3 {[%clk 0:03:00.6]} 4... c5 {[%clk 0:02:56.9]} 5. cxd5 {[%clk 0:02:56.3]}
5... Nxd5 {[%clk 0:02:57.8]} 6. e4 {[%clk 0:02:55.5]} 6... Nxc3 {[%clk
0:02:58.2]} 7. bxc3 {[%clk 0:02:56.4]} 7... cxd4 {[%clk 0:02:58.8]} 8. cxd4
{[%clk 0:02:57.1]} 8... Bb4+ {[%clk 0:02:59.4]} 9. Bd2 {[%clk 0:02:57.2]} 9...
Bxd2+ {[%clk 0:03:00.3]} 10. Qxd2 {[%clk 0:02:55.6]} 10... O-O {[%clk
0:03:01.2]} 11. Bc4 {[%clk 0:02:54.3]} 11... Nd7 {[%clk 0:03:00.9]} 12. O-O
{[%clk 0:02:48.7]} 12... b6 {[%clk 0:03:01]} 13. Rfe1 {[%clk 0:02:33.2]} 13...
Bb7 {[%clk 0:03:01.4]} 14. Bb3 {[%clk 0:02:30.2]} 14... Rc8 {[%clk 0:03:00.4]}
15. Rad1 {[%clk 0:02:29.6]} 15... h6 {[%clk 0:02:59.9]} 16. Qe3 {[%clk
0:02:19.4]} 16... Nf6 {[%clk 0:02:58.1]} 17. Qf4 {[%clk 0:01:47]} 17... Qc7
{[%clk 0:02:34.8]} 18. Ne5 {[%clk 0:01:44]} 18... Nd7 {[%clk 0:02:31]} 19. Qg3
{[%clk 0:01:36.1]} 19... Nxe5 {[%clk 0:02:28.8]} 20. dxe5 {[%clk 0:01:37]} 20...
Rcd8 {[%clk 0:02:26.8]} 21. Rd6 {[%clk 0:01:32.9]} 21... Bxe4 {[%clk 0:02:27.2]}
22. h4 {[%clk 0:01:22.9]} 22... Bb7 {[%clk 0:02:16.4]} 23. Red1 {[%clk
0:01:19.6]} 23... a5 {[%clk 0:02:07.6]} 24. Qd3 {[%clk 0:01:11.4]} 24... Rxd6
{[%clk 0:02:05.6]} 25. exd6 {[%clk 0:01:12.3]} 25... Qc6 {[%clk 0:02:03.2]} 26.
f3 {[%clk 0:01:07.9]} 26... Qc5+ {[%clk 0:02:00.9]} 27. Kh1 {[%clk 0:01:06.6]}
27... Rd8 {[%clk 0:01:56]} 28. Bc2 {[%clk 0:00:59.9]} 28... g6 {[%clk
0:01:51.9]} 29. Bb3 {[%clk 0:00:57.5]} 29... Bd5 {[%clk 0:01:44]} 30. Qd2 {[%clk
0:00:36.6]} 30... Rxd6 {[%clk 0:01:37.9]} 31. h5 {[%clk 0:00:26.6]} 31... Bxb3
{[%clk 0:01:18.9]} 32. Qxd6 {[%clk 0:00:23.6]} 32... Qxh5+ {[%clk 0:01:17.1]}
33. Kg1 {[%clk 0:00:22.3]} 33... Bxd1 {[%clk 0:01:18]} 34. Qxd1 {[%clk
0:00:21.4]} 34... Qc5+ {[%clk 0:01:18.1]} 0-1

[Event "Early-Titled-Tuesday-Blitz-October-03-2023"]
[Site "Chess.com"]
[Date "2023.10.03"]
[Round "8"]
[White "taleslascando"]
[Black "lluiss"]
[Result "1-0"]
[WhiteElo "2029"]
[BlackElo "2202"]
[TimeControl "180+1"]
[EndTime "9:28:23 PDT"]
[Termination "taleslascando won by checkmate"]

1. e4 {[%clk 0:02:55.5]} 1... e6 {[%clk 0:02:57.7]} 2. d4 {[%clk 0:02:50.9]}
2... d5 {[%clk 0:02:57.6]} 3. Nc3 {[%clk 0:02:51.1]} 3... c5 {[%clk 0:02:56.4]}
4. exd5 {[%clk 0:02:49.4]} 4... exd5 {[%clk 0:02:56.1]} 5. Bb5+ {[%clk
0:02:49.1]} 5... Nc6 {[%clk 0:02:53]} 6. Qe2+ {[%clk 0:02:44.7]} 6... Be6 {[%clk
0:02:50.5]} 7. Nf3 {[%clk 0:02:42.1]} 7... Be7 {[%clk 0:02:43.3]} 8. dxc5 {[%clk
0:02:29.7]} 8... d4 {[%clk 0:02:17.8]} 9. Ne4 {[%clk 0:02:18.5]} 9... Qa5+
{[%clk 0:02:15.7]} 10. Bd2 {[%clk 0:02:16.6]} 10... Qc7 {[%clk 0:02:13.4]} 11.
Nxd4 {[%clk 0:02:03.2]} 11... Bd5 {[%clk 0:02:02.8]} 12. Nd6+ {[%clk 0:01:58.1]}
12... Kf8 {[%clk 0:02:02.1]} 13. Bxc6 {[%clk 0:01:04.2]} 13... Bxc6 {[%clk
0:01:50.5]} 14. O-O-O {[%clk 0:00:33.2]} 14... Nf6 {[%clk 0:01:28.9]} 15. N4f5
{[%clk 0:00:26.1]} 15... Nd5 {[%clk 0:01:08.9]} 16. Qh5 {[%clk 0:00:17.8]} 16...
Bf6 {[%clk 0:00:51.1]} 17. c4 {[%clk 0:00:10.9]} 17... Nb6 {[%clk 0:00:37.7]}
18. cxb6 {[%clk 0:00:10.7]} 18... Qxb6 {[%clk 0:00:38]} 19. Qxf7# {[%clk
0:00:07.9]} 1-0

[Event "Early-Titled-Tuesday-Blitz-October-03-2023"]
[Site "Chess.com"]
[Date "2023.10.03"]
[Round "8"]
[White "Martial2008"]
[Black "Good_Knight_Kiss"]
[Result "1-0"]
[WhiteElo "2608"]
[BlackElo "2426"]
[TimeControl "180+1"]
[EndTime "9:28:24 PDT"]
[Termination "Martial2008 won on time"]

1. d4 {[%clk 0:03:00.9]} 1... Nf6 {[%clk 0:02:56.3]} 2. Nf3 {[%clk 0:03:01.4]}
2... g6 {[%clk 0:02:52.6]} 3. Bg5 {[%clk 0:03:00.7]} 3... Bg7 {[%clk 0:02:52.9]}
4. Nbd2 {[%clk 0:03:01.1]} 4... d6 {[%clk 0:02:52.5]} 5. e4 {[%clk 0:02:59.7]}
5... h6 {[%clk 0:02:46.4]} 6. Bh4 {[%clk 0:02:58.8]} 6... O-O {[%clk 0:02:44.6]}
7. c3 {[%clk 0:02:58.4]} 7... Nc6 {[%clk 0:02:43.6]} 8. Bd3 {[%clk 0:02:54.8]}
8... e5 {[%clk 0:02:43.9]} 9. O-O {[%clk 0:02:54.5]} 9... exd4 {[%clk 0:02:38]}
10. cxd4 {[%clk 0:02:54.1]} 10... g5 {[%clk 0:02:38.2]} 11. Bg3 {[%clk
0:02:53.6]} 11... g4 {[%clk 0:02:37.5]} 12. e5 {[%clk 0:02:47.7]} 12... gxf3
{[%clk 0:02:28.4]} 13. exf6 {[%clk 0:02:47.4]} 13... fxg2 {[%clk 0:02:28.3]} 14.
fxg7 {[%clk 0:02:27.1]} 14... gxf1=Q+ {[%clk 0:02:27.6]} 15. Qxf1 {[%clk
0:02:28]} 15... Kxg7 {[%clk 0:02:05.5]} 16. Qg2 {[%clk 0:02:28.9]} 16... Kh8
{[%clk 0:01:52.8]} 17. Qe4 {[%clk 0:02:20.8]} 17... f5 {[%clk 0:01:47.9]} 18.
Qf4 {[%clk 0:02:17.5]} 18... Qg5 {[%clk 0:01:42.7]} 19. Nf3 {[%clk 0:02:17.4]}
19... Qxf4 {[%clk 0:01:40.6]} 20. Bxf4 {[%clk 0:02:18.3]} 20... Kh7 {[%clk
0:01:13]} 21. Rc1 {[%clk 0:02:18.4]} 21... Rf7 {[%clk 0:01:07.8]} 22. a3 {[%clk
0:02:15.3]} 22... Be6 {[%clk 0:01:04.3]} 23. Re1 {[%clk 0:02:14.1]} 23... Bd5
{[%clk 0:01:00.1]} 24. Nh4 {[%clk 0:02:13.9]} 24... Be4 {[%clk 0:00:59.9]} 25.
Bc4 {[%clk 0:02:13.1]} 25... Rg7+ {[%clk 0:00:55.5]} 26. Kf1 {[%clk 0:02:12.8]}
26... Rg4 {[%clk 0:00:53.1]} 27. Bg3 {[%clk 0:02:08.2]} 27... Nxd4 {[%clk
0:00:42.9]} 28. Rd1 {[%clk 0:02:07.1]} 28... f4 {[%clk 0:00:26.6]} 29. Rxd4
{[%clk 0:01:54]} 29... fxg3 {[%clk 0:00:26.7]} 30. Rxe4 {[%clk 0:01:52.5]} 30...
Rxe4 {[%clk 0:00:23.8]} 31. Bd3 {[%clk 0:01:52.8]} 31... d5 {[%clk 0:00:20.3]}
32. f3 {[%clk 0:01:43.6]} 32... gxh2 {[%clk 0:00:19.3]} 33. Kg2 {[%clk
0:01:44.2]} 33... Re8 {[%clk 0:00:09.5]} 34. Kxh2 {[%clk 0:01:41.8]} 34... Kg7
{[%clk 0:00:09.1]} 35. fxe4 {[%clk 0:01:41.3]} 35... dxe4 {[%clk 0:00:09.9]} 36.
Be2 {[%clk 0:01:41.1]} 36... Kf6 {[%clk 0:00:09.7]} 37. Kg3 {[%clk 0:01:41]}
37... Ke5 {[%clk 0:00:08.7]} 38. Kf2 {[%clk 0:01:40.3]} 38... Kd4 {[%clk
0:00:02.8]} 39. Nf5+ {[%clk 0:01:40.2]} 39... Kc5 {[%clk 0:00:02.8]} 40. Nxh6
{[%clk 0:01:40.1]} 40... b5 {[%clk 0:00:02.6]} 41. Ke3 {[%clk 0:01:39.2]} 41...
a6 {[%clk 0:00:01.7]} 42. Ng4 {[%clk 0:01:39.3]} 42... Re7 {[%clk 0:00:01.7]}
43. Nf6 {[%clk 0:01:39.3]} 1-0

[Event "Early-Titled-Tuesday-Blitz-October-03-2023"]
[Site "Chess.com"]
[Date "2023.10.03"]
[Round "8"]
[White "NovoselovRoman"]
[Black "Leonid_Starozhilov"]
[Result "1-0"]
[WhiteElo "2624"]
[BlackElo "2728"]
[TimeControl "180+1"]
[EndTime "9:28:25 PDT"]
[Termination "NovoselovRoman won on time"]

1. e4 {[%clk 0:02:59.4]} 1... g6 {[%clk 0:02:59]} 2. Nc3 {[%clk 0:02:58]} 2...
Bg7 {[%clk 0:02:58]} 3. g3 {[%clk 0:02:58]} 3... c5 {[%clk 0:02:58.1]} 4. Bg2
{[%clk 0:02:58.3]} 4... Nc6 {[%clk 0:02:59]} 5. d3 {[%clk 0:02:58.4]} 5... e5
{[%clk 0:02:59.2]} 6. Be3 {[%clk 0:02:58.3]} 6... d6 {[%clk 0:02:56.5]} 7. Qd2
{[%clk 0:02:55.8]} 7... h6 {[%clk 0:02:56.8]} 8. h4 {[%clk 0:02:53.7]} 8... Nf6
{[%clk 0:02:53.5]} 9. O-O-O {[%clk 0:02:39.2]} 9... Be6 {[%clk 0:02:45.3]} 10.
f4 {[%clk 0:02:36.1]} 10... Ng4 {[%clk 0:02:39.3]} 11. h5 {[%clk 0:02:29.5]}
11... Nxe3 {[%clk 0:02:32.3]} 12. Qxe3 {[%clk 0:02:30]} 12... exf4 {[%clk
0:02:32.5]} 13. gxf4 {[%clk 0:02:27.7]} 13... Bxc3 {[%clk 0:02:23.8]} 14. bxc3
{[%clk 0:02:28.2]} 14... Qa5 {[%clk 0:02:24.4]} 15. hxg6 {[%clk 0:02:17.8]}
15... fxg6 {[%clk 0:02:03.2]} 16. f5 {[%clk 0:02:17.4]} 16... Bxa2 {[%clk
0:01:58.4]} 17. Rxh6 {[%clk 0:02:16.2]} 17... Rxh6 {[%clk 0:01:56.2]} 18. Qxh6
{[%clk 0:02:17.1]} 18... O-O-O {[%clk 0:01:56.3]} 19. Ne2 {[%clk 0:02:11.8]}
19... Ne5 {[%clk 0:01:38.4]} 20. fxg6 {[%clk 0:02:04.8]} 20... Rg8 {[%clk
0:01:25.7]} 21. g7 {[%clk 0:01:54.5]} 21... Qd8 {[%clk 0:00:32.3]} 22. c4 {[%clk
0:01:43.1]} 22... b5 {[%clk 0:00:17.5]} 23. Bh3+ {[%clk 0:01:37.4]} 23... Kb7
{[%clk 0:00:16.6]} 24. Be6 {[%clk 0:01:37.5]} 24... Re8 {[%clk 0:00:06.5]} 25.
Bd5+ {[%clk 0:01:36]} 25... Kb6 {[%clk 0:00:06.8]} 26. g8=Q {[%clk 0:01:30.5]}
26... Rxg8 {[%clk 0:00:06.9]} 27. Bxg8 {[%clk 0:01:31.4]} 27... Qxg8 {[%clk
0:00:07.5]} 28. Qxd6+ {[%clk 0:01:30.3]} 28... Nc6 {[%clk 0:00:07.5]} 29. cxb5
{[%clk 0:01:26.9]} 29... Qg5+ {[%clk 0:00:03.4]} 30. Kb2 {[%clk 0:01:25.5]}
30... Kxb5 {[%clk 0:00:03.7]} 31. Nc3+ {[%clk 0:01:24.8]} 31... Kb6 {[%clk
0:00:03.8]} 32. Kxa2 {[%clk 0:01:23.4]} 1-0

[Event "Early-Titled-Tuesday-Blitz-October-03-2023"]
[Site "Chess.com"]
[Date "2023.10.03"]
[Round "8"]
[White "curradogianfigliazzi"]
[Black "AniJak"]
[Result "1-0"]
[WhiteElo "2273"]
[BlackElo "2365"]
[TimeControl "180+1"]
[EndTime "9:28:36 PDT"]
[Termination "curradogianfigliazzi won by resignation"]

1. e4 {[%clk 0:03:00.9]} 1... Nf6 {[%clk 0:02:59.2]} 2. e5 {[%clk 0:03:00.4]}
2... Nd5 {[%clk 0:02:59.5]} 3. d4 {[%clk 0:03:01.1]} 3... d6 {[%clk 0:02:59.9]}
4. exd6 {[%clk 0:03:02]} 4... cxd6 {[%clk 0:03:00]} 5. c4 {[%clk 0:03:02.4]}
5... Nb6 {[%clk 0:03:00.1]} 6. Nc3 {[%clk 0:03:02.8]} 6... g6 {[%clk 0:03:00.2]}
7. Be3 {[%clk 0:03:03.4]} 7... Bg7 {[%clk 0:02:59.9]} 8. Rc1 {[%clk 0:03:04]}
8... O-O {[%clk 0:02:59.6]} 9. b3 {[%clk 0:03:04.5]} 9... e5 {[%clk 0:02:57.8]}
10. dxe5 {[%clk 0:03:00]} 10... dxe5 {[%clk 0:02:57.8]} 11. Qxd8 {[%clk
0:03:00]} 11... Rxd8 {[%clk 0:02:57.3]} 12. c5 {[%clk 0:03:00.6]} 12... Nd5
{[%clk 0:02:48.7]} 13. Nxd5 {[%clk 0:03:00]} 13... Rxd5 {[%clk 0:02:48.5]} 14.
Bc4 {[%clk 0:03:00.6]} 14... Rd8 {[%clk 0:02:47.5]} 15. Nf3 {[%clk 0:03:00.2]}
15... Nc6 {[%clk 0:02:47.3]} 16. Ng5 {[%clk 0:02:56]} 16... Rf8 {[%clk
0:02:40.7]} 17. O-O {[%clk 0:02:55.1]} 17... h6 {[%clk 0:02:39.8]} 18. Ne4
{[%clk 0:02:54.5]} 18... Nd4 {[%clk 0:02:22.7]} 19. Nd6 {[%clk 0:02:42]} 19...
b6 {[%clk 0:02:15.6]} 20. Bd5 {[%clk 0:02:35.6]} 20... Rb8 {[%clk 0:02:11.1]}
21. Bxd4 {[%clk 0:02:25.1]} 21... exd4 {[%clk 0:02:12]} 22. c6 {[%clk
0:02:25.5]} 22... Be5 {[%clk 0:02:04.4]} 23. c7 {[%clk 0:02:13.8]} 23... Bxd6
{[%clk 0:02:02.9]} 24. cxb8=Q {[%clk 0:02:13.8]} 24... Bxb8 {[%clk 0:02:03.1]}
25. Rfd1 {[%clk 0:02:01.9]} 25... Be5 {[%clk 0:02:00]} 26. Rc6 {[%clk
0:01:54.2]} 26... Bb7 {[%clk 0:01:44.6]} 27. Rxg6+ {[%clk 0:01:53.7]} 27... Kh7
{[%clk 0:01:44.9]} 28. Rxh6+ {[%clk 0:01:12.4]} 28... Kxh6 {[%clk 0:01:42.4]}
29. Bxb7 {[%clk 0:01:13]} 29... Rd8 {[%clk 0:01:34.8]} 30. Be4 {[%clk
0:01:12.9]} 30... Kg5 {[%clk 0:01:32.3]} 31. g3 {[%clk 0:01:12.8]} 31... Bg7
{[%clk 0:01:25]} 32. h4+ {[%clk 0:01:08.9]} 32... Kf6 {[%clk 0:01:20.1]} 33. Kg2
{[%clk 0:01:08.5]} 33... Ke5 {[%clk 0:01:17.7]} 34. Kf3 {[%clk 0:01:07.6]} 34...
Kd6 {[%clk 0:01:15.4]} 35. Rc1 {[%clk 0:01:04.9]} 35... Re8 {[%clk 0:01:06.1]}
36. Bd3 {[%clk 0:00:57.5]} 36... Re5 {[%clk 0:01:01.2]} 37. Rc8 {[%clk
0:00:55.4]} 37... Re1 {[%clk 0:00:58.9]} 38. Rg8 {[%clk 0:00:53.7]} 38... Bh6
{[%clk 0:00:56.3]} 39. Rd8+ {[%clk 0:00:49.4]} 39... Kc5 {[%clk 0:00:53.8]} 40.
Rc8+ {[%clk 0:00:49.3]} 40... Kd6 {[%clk 0:00:52]} 41. Rh8 {[%clk 0:00:48.9]}
41... Bc1 {[%clk 0:00:50.8]} 42. h5 {[%clk 0:00:45.4]} 42... Ke5 {[%clk
0:00:48.2]} 43. Re8+ {[%clk 0:00:44.4]} 43... Kf6 {[%clk 0:00:47.9]} 44. Rxe1
{[%clk 0:00:44.5]} 1-0

[Event "Early-Titled-Tuesday-Blitz-October-03-2023"]
[Site "Chess.com"]
[Date "2023.10.03"]
[Round "8"]
[White "astralpulse"]
[Black "MatthewG-p4p"]
[Result "0-1"]
[WhiteElo "2694"]
[BlackElo "2839"]
[TimeControl "180+1"]
[EndTime "9:28:40 PDT"]
[Termination "MatthewG-p4p won on time"]

1. Nf3 {[%clk 0:03:00.3]} 1... c5 {[%clk 0:03:00]} 2. e3 {[%clk 0:02:59.8]} 2...
g6 {[%clk 0:02:58.4]} 3. d4 {[%clk 0:02:59.4]} 3... Nf6 {[%clk 0:02:58.3]} 4. c3
{[%clk 0:02:59]} 4... cxd4 {[%clk 0:02:56.6]} 5. exd4 {[%clk 0:02:58.8]} 5...
Bg7 {[%clk 0:02:57.4]} 6. Bd3 {[%clk 0:02:55.2]} 6... O-O {[%clk 0:02:57.5]} 7.
O-O {[%clk 0:02:55.5]} 7... d6 {[%clk 0:02:58.2]} 8. Re1 {[%clk 0:02:51.6]} 8...
Nc6 {[%clk 0:02:57.8]} 9. h3 {[%clk 0:02:47.5]} 9... Re8 {[%clk 0:02:45]} 10.
Bf4 {[%clk 0:02:43.7]} 10... e5 {[%clk 0:02:31.1]} 11. dxe5 {[%clk 0:02:41.4]}
11... dxe5 {[%clk 0:02:31.3]} 12. Nxe5 {[%clk 0:02:11.2]} 12... Nh5 {[%clk
0:02:30.3]} 13. Nxc6 {[%clk 0:02:10.8]} 13... Rxe1+ {[%clk 0:02:29.9]} 14. Qxe1
{[%clk 0:02:10.6]} 14... bxc6 {[%clk 0:02:30.6]} 15. Bxg6 {[%clk 0:01:08.8]}
15... hxg6 {[%clk 0:02:13.6]} 16. Be3 {[%clk 0:01:06.6]} 16... Be6 {[%clk
0:02:06.5]} 17. Nd2 {[%clk 0:01:06.4]} 17... Qd5 {[%clk 0:02:06.2]} 18. Nb3
{[%clk 0:01:00.8]} 18... a5 {[%clk 0:02:05.6]} 19. Rd1 {[%clk 0:01:00.2]} 19...
Qe5 {[%clk 0:02:01.6]} 20. Nd4 {[%clk 0:00:55.1]} 20... Bd5 {[%clk 0:02:01.3]}
21. b3 {[%clk 0:00:40]} 21... Nf4 {[%clk 0:01:25.3]} 22. f3 {[%clk 0:00:19.9]}
22... Re8 {[%clk 0:01:12.6]} 23. Bf2 {[%clk 0:00:18.9]} 23... Nxh3+ {[%clk
0:01:10.3]} 24. Kf1 {[%clk 0:00:17.1]} 24... Qb8 {[%clk 0:01:00.6]} 25. Qd2
{[%clk 0:00:14.6]} 25... Nxf2 {[%clk 0:00:55.7]} 26. Kxf2 {[%clk 0:00:14]} 26...
Qh2 {[%clk 0:00:51.3]} 27. Qg5 {[%clk 0:00:12.2]} 27... Bh6 {[%clk 0:00:46.2]}
0-1

[Event "Early-Titled-Tuesday-Blitz-October-03-2023"]
[Site "Chess.com"]
[Date "2023.10.03"]
[Round "8"]
[White "azikom"]
[Black "N4700000"]
[Result "1-0"]
[WhiteElo "2577"]
[BlackElo "2398"]
[TimeControl "180+1"]
[EndTime "9:28:49 PDT"]
[Termination "azikom won on time"]

1. d4 {[%clk 0:03:00.9]} 1... d5 {[%clk 0:02:57.3]} 2. Nf3 {[%clk 0:02:59.8]}
2... e6 {[%clk 0:02:55.9]} 3. Bf4 {[%clk 0:03:00]} 3... c5 {[%clk 0:02:51.1]} 4.
e3 {[%clk 0:02:59.5]} 4... Nc6 {[%clk 0:02:50.4]} 5. c3 {[%clk 0:02:59]} 5...
Nf6 {[%clk 0:02:48]} 6. Nbd2 {[%clk 0:02:58.2]} 6... Bd6 {[%clk 0:02:48.3]} 7.
Bg3 {[%clk 0:02:58.6]} 7... O-O {[%clk 0:02:42.8]} 8. Bb5 {[%clk 0:02:57.8]}
8... Qe7 {[%clk 0:02:29.2]} 9. O-O {[%clk 0:02:55.3]} 9... Bd7 {[%clk
0:02:23.3]} 10. Ba4 {[%clk 0:02:53.8]} 10... Rfc8 {[%clk 0:02:12.6]} 11. Re1
{[%clk 0:02:52.7]} 11... Bxg3 {[%clk 0:02:04.2]} 12. hxg3 {[%clk 0:02:52.1]}
12... Rab8 {[%clk 0:02:01]} 13. Bc2 {[%clk 0:02:46.9]} 13... b5 {[%clk
0:01:59.5]} 14. dxc5 {[%clk 0:02:45.5]} 14... Qxc5 {[%clk 0:01:58.4]} 15. e4
{[%clk 0:02:45.7]} 15... h6 {[%clk 0:01:18.2]} 16. Nb3 {[%clk 0:02:39.2]} 16...
Qb6 {[%clk 0:01:12.8]} 17. e5 {[%clk 0:02:38.5]} 17... Nh7 {[%clk 0:01:07.7]}
18. a3 {[%clk 0:02:36.1]} 18... a5 {[%clk 0:01:06.2]} 19. g4 {[%clk 0:02:25.2]}
19... Ne7 {[%clk 0:00:57.9]} 20. Qd3 {[%clk 0:02:18.8]} 20... Ng6 {[%clk
0:00:53.9]} 21. Qd2 {[%clk 0:02:15.7]} 21... Nhf8 {[%clk 0:00:35.1]} 22. g5
{[%clk 0:02:04.8]} 22... h5 {[%clk 0:00:34.3]} 23. Nbd4 {[%clk 0:01:58.7]} 23...
b4 {[%clk 0:00:32.2]} 24. cxb4 {[%clk 0:01:56.4]} 24... axb4 {[%clk 0:00:33.1]}
25. a4 {[%clk 0:01:57]} 25... Rc4 {[%clk 0:00:12.6]} 26. Bb3 {[%clk 0:01:53.9]}
26... Rc5 {[%clk 0:00:12.3]} 27. g3 {[%clk 0:01:52.8]} 27... Rbc8 {[%clk
0:00:12.1]} 28. Kg2 {[%clk 0:01:52.2]} 28... R8c7 {[%clk 0:00:11.3]} 29. Rh1
{[%clk 0:01:50.8]} 29... Qb8 {[%clk 0:00:06.7]} 30. Rxh5 {[%clk 0:01:47.4]}
30... Ra7 {[%clk 0:00:04.6]} 31. Qe3 {[%clk 0:01:42.9]} 31... Rca5 {[%clk
0:00:01.1]} 32. Rah1 {[%clk 0:01:31.5]} 32... Bxa4 {[%clk 0:00:01.6]} 33. Bxa4
{[%clk 0:01:30.7]} 33... Rxa4 {[%clk 0:00:02.5]} 34. Nc6 {[%clk 0:01:30.5]}
34... Qb7 {[%clk 0:00:01.5]} 35. Nxa7 {[%clk 0:01:28.1]} 35... Rxa7 {[%clk
0:00:02.4]} 36. Nh4 {[%clk 0:01:20.3]} 36... Ra2 {[%clk 0:00:01.3]} 37. Qd4
{[%clk 0:01:08.2]} 1-0

[Event "Early-Titled-Tuesday-Blitz-October-03-2023"]
[Site "Chess.com"]
[Date "2023.10.03"]
[Round "8"]
[White "Doomfist26"]
[Black "Witty_Alien"]
[Result "1-0"]
[WhiteElo "2592"]
[BlackElo "2274"]
[TimeControl "180+1"]
[EndTime "9:28:52 PDT"]
[Termination "Doomfist26 won by checkmate"]

1. e4 {[%clk 0:03:00.9]} 1... c5 {[%clk 0:02:57.4]} 2. Nf3 {[%clk 0:03:00.9]}
2... d6 {[%clk 0:02:57.1]} 3. d4 {[%clk 0:03:00.4]} 3... cxd4 {[%clk 0:02:56.2]}
4. Qxd4 {[%clk 0:03:01]} 4... a6 {[%clk 0:02:54.8]} 5. c4 {[%clk 0:02:46.2]}
5... Nf6 {[%clk 0:02:52]} 6. Nc3 {[%clk 0:02:44.8]} 6... g6 {[%clk 0:02:45.4]}
7. Be3 {[%clk 0:02:34.8]} 7... Bg7 {[%clk 0:02:44.2]} 8. Qd2 {[%clk 0:02:34.6]}
8... Ng4 {[%clk 0:02:42.2]} 9. Bg5 {[%clk 0:02:27.5]} 9... h6 {[%clk 0:02:37.8]}
10. Bh4 {[%clk 0:02:26.9]} 10... Nc6 {[%clk 0:02:22.8]} 11. Be2 {[%clk
0:02:25.6]} 11... Be6 {[%clk 0:02:09.1]} 12. O-O {[%clk 0:02:19.9]} 12... g5
{[%clk 0:01:38.4]} 13. Bg3 {[%clk 0:02:14.4]} 13... Nce5 {[%clk 0:01:27.1]} 14.
Nxe5 {[%clk 0:02:10.1]} 14... Nxe5 {[%clk 0:01:10.6]} 15. b3 {[%clk 0:02:09]}
15... h5 {[%clk 0:01:03.9]} 16. f4 {[%clk 0:01:56.1]} 16... Qb6+ {[%clk
0:00:59.2]} 17. Bf2 {[%clk 0:01:54.9]} 17... Qa5 {[%clk 0:00:27.8]} 18. fxe5
{[%clk 0:01:50.6]} 18... Qxe5 {[%clk 0:00:28.7]} 19. Rac1 {[%clk 0:01:44.9]}
19... h4 {[%clk 0:00:26.1]} 20. Nd5 {[%clk 0:01:43.6]} 20... Rc8 {[%clk
0:00:20.2]} 21. Rcd1 {[%clk 0:01:22.9]} 21... h3 {[%clk 0:00:04.2]} 22. Bg3
{[%clk 0:01:08.3]} 22... Qxe4 {[%clk 0:00:04.3]} 23. Bf3 {[%clk 0:01:04.7]}
23... Qg6 {[%clk 0:00:02]} 24. Rfe1 {[%clk 0:00:58.5]} 24... hxg2 {[%clk
0:00:01.7]} 25. Nxe7 {[%clk 0:00:57.2]} 25... Kxe7 {[%clk 0:00:01.9]} 26. Qxd6+
{[%clk 0:00:57.4]} 26... Ke8 {[%clk 0:00:01.8]} 27. Qd7+ {[%clk 0:00:58]} 27...
Kf8 {[%clk 0:00:01.8]} 28. Qxb7 {[%clk 0:00:47.1]} 28... Re8 {[%clk 0:00:02.2]}
29. Bc6 {[%clk 0:00:44.5]} 29... Re7 {[%clk 0:00:01.5]} 30. Rd8+ {[%clk
0:00:43.1]} 30... Re8 {[%clk 0:00:01.6]} 31. Rxe8# {[%clk 0:00:43.6]} 1-0